Cogmind - Beta 16.1 @@@ ROGUE MODE // 2026.03.12 @ 22:43:40 Player: Byrnorthil Result: Destroyed by H-71 Marshal with Heavy Mass Driver Performance ------------- Evolutions (5) 2500 Regions Visited (5) 1000 Robots Destroyed (60) 300 Value Destroyed (1500) 1500 Prototype IDs (44) 880 Alien Tech Used (0) 0 Bonus (1511) 1511 TOTAL SCORE: 7691 Bonus ------- Follower Combat Kills 711 Registered with UFD 300 Met Optimus in HQ 500 Cogmind --------- Core Integrity 0/1000 Matter 145/300 Energy 64/100 System Corruption 12% Temperature Cool (4) Movement Core (50) Location -5/Factory Parts ------- > --- POWER (1) -------- (None) > --- PROPULSION (2) --- (None) > --- UTILITY (8) ------ Advanced Visual Processing Unit A0-MCA's Component Scanner > --- WEAPON (6) ------- (None) > --- INVENTORY (5) ---- Improved Transmission Jammer System Shield Multitool Peak State ------------ > --- POWER ------------ Reinforced Deuterium Engine > --- PROPULSION ------- Wheel Compact Wheel > --- UTILITY ---------- High-capacity Storage Unit Improved Matter Compressor Deep Structural Scanner Advanced Visual Processing Unit Improved Propulsion Shielding Medium Reactive Plating EM Disruption Field A0-MCA's Component Scanner > --- WEAPON ----------- Advanced Plasma Cannon 1B-0RG's Assimilator > --- INVENTORY -------- Improved Deuterium Engine Compact Matter Pod Surveybot 17 Chip Improved Transmission Jammer Improved Medium Armor Plating Improved Medium Armor Plating Improved Shield Generator System Shield Improved Field Recycling Unit Heavy Particle Cannon Heavy Ion Cannon Proton Missile Launcher Remote Datajack CPS Tube Multitool Makeshift Hammer DRS Beacon [Rating: 118] Favorites ----------- Power Micro Nuclear Core Engine Ion Engine Power Core Micro Nuclear Core Propulsion Wheel Treads Light Treads Leg Aluminum Leg Wheel Wheel Flight Unit Nuclear Pulse Array Utility High-capacity Storage Unit Device Component Analysis Suite Storage High-capacity Storage Unit Processor Advanced Visual Processing Unit Protection Medium Reactive Plating Weapon Makeshift Hammer Energy Gun Beam Rifle Energy Cannon Subdweller Beam Cannon Ballistic Gun Assault Rifle Ballistic Cannon Battle Cannon Launcher Proton Missile Launcher Special Weapon Remote Datajack Impact Weapon Makeshift Hammer Slashing Weapon Mining Claw Special Melee Weapon 1B-0RG's Assimilator Build | -11 -10 -10 -7 -7 -5 ------- Run | Yrd Mat Sub Rec Scr Fac Slots Evolved 10 | . . . . . 10 Power . | . . . . . . Propulsion . | . . . . . . Utility 6 | . . . . . 6 Weapon 4 | . . . . . 4 Parts Attached 66 | 8 12 19 4 8 15 Power 6 | 1 1 2 1 1 . Engine 5 | 1 1 2 . 1 . Core 1 | . . . 1 . . Reactor . | . . . . . . Propulsion 20 | 3 3 8 . 3 3 Treads 4 | 1 3 . . . . Leg 5 | 2 . . . 3 . Wheel 8 | . . 8 . . . Hover . | . . . . . . Flight 3 | . . . . . 3 Utility 19 | 2 4 1 3 1 8 Device 7 | 1 1 . 1 . 4 Storage 6 | 1 3 . 1 . 1 Processor 2 | . . . . . 2 Hackware . | . . . . . . Protection 4 | . . 1 1 1 1 Artifact . | . . . . . . Weapon 21 | 2 4 8 . 3 4 Energy Gun 6 | 1 2 3 . . . Energy Cannon 5 | . 1 1 . 2 1 Ballistic Gun 2 | 1 . 1 . . . Ballistic Cannon 1 | . . 1 . . . Launcher 3 | . 1 . . . 2 Special Weapon 1 | . . . . 1 . Impact Weapon 1 | . . 1 . . . Slashing Weapon 1 | . . 1 . . . Piercing Weapon . | . . . . . . Special Melee Weapon 1 | . . . . . 1 Unidentified Prototypes . | . . . . . . Parts Lost 16 | . 1 1 . . 14 Power 1 | . . . . . 1 Propulsion 8 | . 1 1 . . 6 Utility 4 | . . . . . 4 Weapon 3 | . . . . . 3 Highest Loss Streak 8 | . 1 1 . . 8 To Critical Strikes . | . . . . . . Average Backups 9 | 7 11 5 11 10 11 Power . | . 1 . . . . Propulsion 1 | 4 2 . 1 1 . Utility 3 | 1 4 2 4 4 4 Weapon 2 | . 3 2 2 1 2 Tool/Special . | . . . . . . Unused Backups 43 | 3 6 8 . 11 15 Power 7 | . 1 1 . 2 3 Propulsion 4 | 3 . . . 1 . Utility 23 | . 2 5 . 7 9 Weapon 7 | . 3 2 . 1 1 Tool/Special 2 | . . . . . 2 Average Slot Usage (%) 82 | . 99 85 94 76 64 Engine 7 | . 14 14 5 3 3 Core 3 | . . . 8 5 . Treads 4 | . 27 1 . . . Wheel 20 | . . 26 28 25 8 Device 6 | . 14 . 8 5 11 Storage 10 | . 14 2 14 12 6 Processor 1 | . . . . . 10 Protection 4 | . . 11 . 3 8 Energy Gun 4 | . 21 9 . . . Energy Cannon 6 | . 1 2 14 9 1 Ballistic Gun 1 | . 5 2 . . . Impact Weapon 6 | . . 10 14 6 3 Peak Build Rating 118 | 7 11 20 28 36 118 Average Rating 25 | 6 8 15 24 19 95 On Entrance 16 | . 7 11 20 28 31 Avg Prop Armor Cover (%) 1 | . . 1 . . . Naked Turns 302 | . . . . 302 . Heaviest Build 147 | 15 32 36 60 89 147 Greatest Support 40 | 20 40 40 20 40 26 Greatest Overweight (x) 28 | . . 10 2 28 19 Average Overweight (x) 1 | . . . 1 1 2 Largest Inventory Capacity 20 | 8 15 15 20 20 20 Average Capacity 14 | 7 13 6 18 18 16 Most Carried 20 | 8 14 15 20 20 20 Average Carried 12 | 7 11 5 17 14 12 Final Capacity 20 | 8 15 15 20 20 5 Final Carried 20 | 8 14 13 20 20 3 Class Distribution -------------------- 54% | Commander-Mutant 33% | Mutant 11% | Subdweller-Mutant Dominant Class ---------------- Mutant | -10/Materials Subdweller-Mutant | -10/Subcaves Commander-Mutant | -7/Recycling Commander-Mutant | -7/Scraptown Mutant | -5/Factory Resources | -11 -10 -10 -7 -7 -5 ----------- Run | Yrd Mat Sub Rec Scr Fac Matter Collected 2932 | 327 431 355 40 175 1604 Remotely . | . . . . . . Salvage Created 2365 | 163 863 417 452 . 470 Parts 96 | 10 55 13 5 . 13 Haulers Intercepted 2 | . 2 . . . . Recyclers Shooed 2 | . 1 . . . 1 Parts Field Recycled . | . . . . . . Retrieved Matter . | . . . . . . Parts Self-Destructed 5 | . . 5 . . . Prevented . | . . . . . . Parts Restored . | . . . . . . Kills | -11 -10 -10 -7 -7 -5 ------- Run | Yrd Mat Sub Rec Scr Fac Combat Hostiles Destroyed 39 | . 21 10 2 . 6 Melee 9 | . . 4 2 . 3 Guns 19 | . 18 1 . . . AOE 3 | . 3 . . . . Classes Destroyed 12 | 3 4 2 2 . 1 Worker 5 | 3 2 . . . . Builder 1 | . . . . . 1 Tunneler 1 | 1 . . . . . Hauler 2 | . 2 . . . . Recycler 7 | 1 1 . 4 . 1 Turret 2 | . . 2 . . . Watcher 3 | . 3 . . . . Swarmer 10 | . 9 . . . 1 Grunt 17 | . 12 . . . 5 Sentry 1 | . . . 1 . . Programmer 1 | . . . 1 . . Subdweller 10 | . . 10 . . . Best Kill Streak 5 | 2 5 4 1 . 3 Combat Bots Only 4 | . 3 4 1 . 3 Max Kills in Single Turn 2 | 1 2 1 1 . 1 Gunslinging . | . . . . . . Exploded 2 | . 2 . . . . Melee 1 | . . 1 1 . 1 Uniques/NPCs Destroyed . | . . . . . . Combat | -11 -10 -10 -7 -7 -5 -------- Run | Yrd Mat Sub Rec Scr Fac Hostile Shots Fired 376 | . 67 44 19 . 246 Missed 123 | . 16 12 8 . 87 Hits 253 | . 51 32 11 . 159 Projectile 253 | . 51 32 11 . 159 Critical Strikes 8 | . . . . . 8 Part Disruptions 1 | . . . . . 1 Actively Blocked 1 | . . . . . 1 Damage Taken 3867 | . 544 672 92 . 2559 Core 1180 | . 90 43 34 . 1013 Absorbed by Shields 485 | . . . 4 . 481 Redirected to Shielding 52 | . . . . . 52 Ignored by Resistances 141 | . . . . . 141 Regen/Repaired (Parts) 967 | . . . . 755 212 Core Remaining (%) 66 | 100 . . . 33 . Volleys Fired 117 | 6 61 37 . 3 10 Largest 2 | 2 2 2 . 1 1 Hottest 112 | 70 112 112 . 5 98 Shots Fired 187 | 12 119 43 . 3 10 Gun 129 | 12 105 12 . . . Cannon 52 | . 11 31 . . 10 Launcher 3 | . 3 . . . . Special 3 | . . . . 3 . Kinetic 60 | 6 27 27 . . . Thermal 121 | 6 89 16 . . 10 Explosive 3 | . 3 . . . . Electromagnetic . | . . . . . . Robot Hit Streak 10 | 3 10 6 . 5 9 Robot Miss Streak 8 | 1 8 1 . . 1 Penetration Max . | . . . . . . Secondary Targets 2 | . 2 . . . . Max Gunslinging Chain 1 | . 1 . . . . Shots Hit Robots 143 | 8 70 33 9 3 20 Core Hits 58 | 5 38 8 1 . 6 Critical Kills 1 | . . 1 . . . Critical Parts Destroyed 7 | . . 3 3 . 1 Critical Strikes 13 | . 4 5 3 . 1 Burn 4 | . 4 . . . . Destroy 1 | . . 1 . . . Smash 8 | . . 4 3 . 1 Melee Attacks 125 | . . 92 14 . 19 Impact 120 | . . 87 14 . 19 Slashing 5 | . . 5 . . . Piercing . | . . . . . . Sneak Attacks 8 | . . . 7 . 1 Combat Hostiles 1 | . . . . . 1 Follow-up Attacks . | . . . . . . Damage Inflicted 4466 | 102 1258 1381 778 . 947 Guns 1144 | 102 941 101 . . . Cannons 298 | . 106 . . . 192 Explosions 166 | . 166 . . . . Melee 2813 | . . 1280 778 . 755 Ramming 45 | . 45 . . . . Kinetic 321 | 65 222 34 . . . Thermal 1121 | 37 825 67 . . 192 Explosive 166 | . 166 . . . . Electromagnetic . | . . . . . . Impact 2813 | . . 1280 778 . 755 Slashing . | . . . . . . Piercing . | . . . . . . Highest Corruption 12 | . . . . . 12 Average Corruption 7 | . . . . . 7 Corruption Purged . | . . . . . . Corruption Blocked . | . . . . . . Effects 16 | . . . . . 16 Message Errors 7 | . . . . . 7 Matter Fused 2 | . . . . . 2 Heat Flow Errors 1 | . . . . . 1 Energy Discharges 3 | . . . . . 3 Parts Rejected 1 | . . . . . 1 Data Loss (minor) 1 | . . . . . 1 Misdirections 1 | . . . . . 1 Overload Shots . | . . . . . . Overflow Damage 789 | . 30 181 465 . 113 Projectiles . | . . . . . . Explosions 30 | . 30 . . . . Melee 759 | . . 181 465 . 113 Knockbacks 9 | . . 4 3 . 2 Impact 7 | . . 3 3 . 1 Kinetic . | . . . . . . Secondary 2 | . . 1 . . 1 Self-Inflicted Damage . | . . . . . . Shots . | . . . . . . Rammed 4 | . 4 . . . . Targets Rammed 4 | . 4 . . . . Kicked . | . . . . . . Crushed . | . . . . . . Highest Temperature 393 | 18 393 6 . . 144 Average Temperature 98 | 7 109 4 . . 61 Received Heat Transfer 622 | . 201 141 12 . 268 Effects 2 | . 2 . . . . Energy Bleed 2 | . 2 . . . . Siege Activations . | . . . . . . Martial Activations . | . . . . . . Shielding Activations . | . . . . . . Robots Disrupted . | . . . . . . Combat Hostiles . | . . . . . . Robots Corrupted 12 | . . 5 4 . 3 Combat Hostiles 8 | . . 5 . . 3 Parts Fried 11 | . . 4 3 . 4 Impact Corruptions 26 | . . 10 12 . 4 Robots Melted . | . . . . . . Combat Hostiles . | . . . . . . Parts Melted 7 | 1 2 2 1 . 1 Heat Transferred 2915 | 111 2368 136 . . 300 Parts Sabotaged . | . . . . . . Parts Stolen . | . . . . . . Parts Stripped . | . . . . . . Power Chain Reactions . | . . . . . . Alert | -11 -10 -10 -7 -7 -5 ------- Run | Yrd Mat Sub Rec Scr Fac Maximum Alert Level 1 | . 1 . . . 1 Low Security (%) 95 | 100 90 . 100 . 93 Level 1 4 | . 9 . . . 6 Level 2 . | . . . . . . Level 3 . | . . . . . . Level 4 . | . . . . . . Level 5 . | . . . . . . High Security . | . . . . . . Max Security . | . . . . . . Peak Influence 250 | 5 221 . 61 . 250 Initial . | . . . . . . Average 61 | . 108 . 11 . 87 Influence Increases 2288 | 25 701 115 296 . 1151 Destroy 0b10 Robot/C 1140 | . 420 40 80 . 600 Destroy 0b10 Robot/NC 120 | 25 40 . 20 . 35 Destroy Leader 214 | . 120 . . . 94 Allied During Kill 184 | . . . 37 . 147 Successful Hack 102 | . 29 . 38 . 35 Select Force Hacks 180 | . 60 . 120 . . Disable Machine 15 | . . . . . 15 Destroy Structure 48 | . 17 . 1 . 30 Lose Combat Pursuer 285 | . 15 75 . . 195 Influence Decreases 2144 | 25 527 289 296 . 1007 Entered New Map 84 | . . 84 . . . Time Decay 1371 | 25 507 195 257 . 387 Search Patrol Dispatched 100 | . . . . . 100 Lost Part 160 | . 10 10 . . 140 Lost Ally 429 | . 10 . 39 . 380 Squads Dispatched 21 | . 6 . . . 15 Investigation 12 | . 4 . . . 8 Extermination 4 | . . . . . 4 Reinforcement 5 | . 2 . . . 3 Assault . | . . . . . . Garrison . | . . . . . . Intercept . | . . . . . . Searches Triggered 1 | . . . . . 1 Construction Impeded 1 | . . . . . 1 Haulers Reinforced . | . . . . . . Active Scanning Responses . | . . . . . . Cargo Convoy Interrupts 1 | . . . . . 1 Stealth | -11 -10 -10 -7 -7 -5 --------- Run | Yrd Mat Sub Rec Scr Fac Distress Signals 4 | . 3 . . . 1 Communications Jammed 284 | . . . . . 284 Distress Signals 284 | . . . . . 284 Times Spotted 114 | . 30 17 3 . 64 Peak Tracking Total 11 | . 4 4 2 . 11 Tactical Retreats 11 | . 1 4 . . 6 Traps | -11 -10 -10 -7 -7 -5 ------- Run | Yrd Mat Sub Rec Scr Fac Traps Triggered 4 | . 1 2 . . 1 Indirectly . | . . . . . . Trap Hack Attempts . | . . . . . . Triggered . | . . . . . . Disarmed . | . . . . . . Reprogrammed . | . . . . . . Reused . | . . . . . . Traps Extracted . | . . . . . . Installed . | . . . . . . Triggered . | . . . . . . Machines | -11 -10 -10 -7 -7 -5 ---------- Run | Yrd Mat Sub Rec Scr Fac Machines Disabled 3 | . . 2 . . 1 Max in Single Turn 1 | . . 1 . . . Machines Repaired . | . . . . . . Machines Dismantled . | . . . . . . Machines Sabotaged . | . . . . . . Overloaded Fab Kills . | . . . . . . Hacking | -11 -10 -10 -7 -7 -5 --------- Run | Yrd Mat Sub Rec Scr Fac Machines Accessed 36 | . 9 2 10 4 11 Terminals 18 | . 6 . 6 . 6 Fabricators . | . . . . . . Repair Stations 3 | . 1 . . . 2 Recycling Units 8 | . 2 . 4 . 2 Scanalyzers . | . . . . . . Garrison Access 1 | . . . . . 1 Total Hacks 122 | . 35 4 31 25 27 Successful 72 | . 23 4 12 25 8 Failed 50 | . 12 . 19 . 19 Catastrophic 9 | . . . 4 . 5 Database Lockouts . | . . . . . . Manual 54 | . 31 . 7 . 16 Terminals 59 | . 27 . 17 . 15 Fabricators . | . . . . . . Repair Stations 4 | . 1 . . . 3 Recycling Units 26 | . 7 . 14 . 5 Scanalyzers . | . . . . . . Garrison Access 4 | . . . . . 4 Terminal Hacks 38 | . 6 4 2 25 1 Record 28 | . . 3 . 25 . Robot Analysis 3 | . 3 . . . . Prototype ID Bank 5 | . 3 . 2 . . Alert Level 1 | . . . . . 1 Proto ID Catalog 1 | . . 1 . . . Fabricator Hacks . | . . . . . . Repair Station Hacks 1 | . . . . . 1 Scan Component 1 | . . . . . 1 Recycling Unit Hacks 7 | . 1 . 6 . . Report Inventory 4 | . 1 . 3 . . Retrieve Components 3 | . . . 3 . . Scanalyzer . | . . . . . . Garrison Access Hacks . | . . . . . . Unauthorized Hacks 26 | . 16 . 4 . 6 Terminals 12 | . 9 . . . 3 Assimilate 1 | . 1 . . . . Botnet 4 | . 2 . . . 2 Operators 2 | . 1 . . . 1 Skim 5 | . 5 . . . . Fabricators . | . . . . . . Repair Stations 2 | . 1 . . . 1 Mechanics 1 | . 1 . . . . Patch 1 | . . . . . 1 Recycling Units 12 | . 6 . 4 . 2 Monitor 1 | . 1 . . . . Reject 2 | . 2 . . . . Recyclers 1 | . 1 . . . . Tunnel 6 | . 2 . 4 . . Fedlink 1 | . . . . . 1 Scrapoids 1 | . . . . . 1 Scanalyzers . | . . . . . . Garrison Access . | . . . . . . Data Cores Recovered . | . . . . . . Used . | . . . . . . Hacking Detections 25 | . 8 . 8 . 9 Full Trace Events 11 | . 1 . 6 . 4 Feedback Events . | . . . . . . Feedback Blocked . | . . . . . . Robot Schematics Acquired . | . . . . . . Robots Built . | . . . . . . Authchips . | . . . . . . Time . | . . . . . . Total Robot Build Rating . | . . . . . . Part Schematics Acquired . | . . . . . . Parts Built . | . . . . . . Authchips . | . . . . . . Time . | . . . . . . Total Part Build Rating . | . . . . . . Part Studies Acquired . | . . . . . . Parts Repaired . | . . . . . . Time . | . . . . . . Parts Recycled . | . . . . . . Recycled Matter . | . . . . . . Retrieved Matter . | . . . . . . Retrieved Components 8 | . . . 8 . . Parts Scanalyzed . | . . . . . . Part Schematics Acquired . | . . . . . . Parts Damaged . | . . . . . . Bothacking | -11 -10 -10 -7 -7 -5 ------------ Run | Yrd Mat Sub Rec Scr Fac Used RIF Installer . | . . . . . . Robots Hacked 3 | . . . . 3 . Non-combat 1 | . . . . 1 . Combat 2 | . . . . 2 . Robot Hacks Applied 3 | . . . . 3 . parse_system 3 | . . . . 3 . Relay Couplers Released . | . . . . . . Fabnet Peak Effective % . | . . . . . . Robots Rewired 19 | . . . 19 . . Allies Hacked 4 | . . . . . 4 Hacks Repelled . | . . . . . . Allies | -11 -10 -10 -7 -7 -5 -------- Run | Yrd Mat Sub Rec Scr Fac Total Allies 31 | . 1 . 19 1 10 Largest Group 19 | . 1 . 19 15 11 Highest-Rated Group 464 | . 10 . 464 435 307 Highest-Rated Ally 77 | . 10 . 40 70 77 Initial UFD Resources 38 | . . . . . 38 Total Orders . | . . . . . . Ally Attacks 127 | . . . 15 . 112 Total Damage 4356 | . . . 376 . 3980 Kills 32 | . . . 2 . 30 Allies Corrupted 2 | . . . . . 2 Allies Melted 1 | . . . . . 1 Borg Created 12 | . . . . . 12 Largest Collective 5 | . . . . . 5 Intel | -11 -10 -10 -7 -7 -5 ------- Run | Yrd Mat Sub Rec Scr Fac Active Infowar (turns) 3955 | 715 1810 88 . . 1342 Optics 1342 | . . . . . 1342 Structural 1084 | . . . . . 1084 Seismic 2613 | 715 1810 88 . . . Jamming 378 | . . . . . 378 Robot Analysis Total 3 | . 3 . . . . Derelict Logs Recovered 2 | . . . . 2 . Drone Launches . | . . . . . . Drone Recoveries . | . . . . . . Exploration | -11 -10 -10 -7 -7 -5 ------------- Run | Yrd Mat Sub Rec Scr Fac Turns Passed 13219 | 770 1810 2197 1497 5598 1347 Spaces Moved 10080 | 121 923 1683 1080 5084 1189 Core 716 | 1 . 11 . 595 109 Treads 930 | 3 893 34 . . . Legs 208 | 117 30 . . 61 . Wheels 7708 | . . 1638 1080 4428 562 Hover . | . . . . . . Flight 518 | . . . . . 518 Fastest Speed 40 | 50 120 95 95 50 40 Average Speed 110 | 120 158 107 104 106 100 Slowest Speed 1450 | 160 160 550 110 1450 1000 Overloaded Moves . | . . . . . . Propulsion Burnouts . | . . . . . . Robots Hopped 16 | . . . . . 16 Potential Cave-ins 4 | . . 4 . . . Cave-ins Triggered . | . . . . . . Exploration Rate (%) 67 | 6 98 65 99 94 43 Regions Visited 5 Branch Regions 3 Pre-discovered Areas 13 | . 2 1 4 6 . Known Exits Taken . | . . . . . . Unknown Exits Taken 5 | 1 1 1 1 1 . Scrap Searched 9 | . . 3 . 6 . Spaces Dug 42 | . . 38 1 . 3 Terrain Destroyed 58 | . 15 38 1 . 4 Melee 25 | . . 24 1 . . Projectile 18 | . . 14 . . 4 AOE 15 | . 15 . . . . Terrain Rammed . | . . . . . . Walls Destroyed . | . . . . . . Machines Disabled . | . . . . . . Actions | -11 -10 -10 -7 -7 -5 --------- Run | Yrd Mat Sub Rec Scr Fac Total 11778 | 734 1150 1928 1434 5268 1264 Wait 990 | 585 119 36 140 97 13 Move 10046 | 120 922 1682 1079 5083 1160 Hop 13 | . . . . . 13 Pick Up 95 | 11 14 13 5 40 12 Fast Attach 32 | 7 3 6 4 9 3 Attach 20 | 1 1 5 . 2 11 Detach 6 | 1 . 2 2 1 . Swap 31 | . 10 12 . 5 4 Drop 85 | 3 16 31 1 28 6 Fire 117 | 6 61 37 . 3 10 Melee 125 | . . 92 14 . 19 Ram . | . . . . . . Kick . | . . . . . . Crush 4 | . 4 . . . . Escape Stasis . | . . . . . . Rewire 189 | . . . 189 . . Trap . | . . . . . . Miscellaneous 25 | . . 12 . . 13 Route ------- -11/Scrapyard -10/Materials (discovered 6 exits: [*Mat x3] / [*Min x2] / *Sub) -10/Subcaves (discovered 3 exits: [*Mat x2] / *Rec) -7/Recycling (discovered 2 exits: *Fac / *Scr) -7/Scraptown (discovered 2 exits: *Fac x2) -5/Factory (discovered 3 exits: Fac x2 / [*Upp]) History --------- Turn | Location | Event 10 | -11/Scrapyard | Discovered new exit (range 15) 771 | -11/Scrapyard | Entered Materials 772 | -10/Materials | Build established: Mutant 900 | -10/Materials | Discovered new exit (range 10) 1238 | -10/Materials | Discovered new exit (range 11) 1327 | -10/Materials | Discovered new exit (range 11) 1509 | -10/Materials | Discovered new exit (range 16) 1807 | -10/Materials | Discovered new exit (range 8) 2171 | -10/Materials | Derelicts attacked the area 2560 | -10/Materials | Discovered new exit (range 13) 2581 | -10/Materials | Entered Subcaves 2621 | -10/Subcaves | Shifting Twisted Machinery released Scrap Shield 2624 | -10/Subcaves | Shifting Twisted Machinery released Sub. Monowheel 2635 | -10/Subcaves | Discovered new exit (range 6) 2823 | -10/Subcaves | Shifting Twisted Machinery released Mak. Hammer 2823 | -10/Subcaves | Shifting Twisted Machinery released Riot Gun 2979 | -10/Subcaves | Discovered new exit (range 12) 3076 | -10/Subcaves | Build established: Subdweller-Mutant 3100 | -10/Subcaves | Visited Clippyterm 3104 | -10/Subcaves | Learned location of Deep Caves (-6) 3160 | -10/Subcaves | Core integrity fell below 50% 4068 | -10/Subcaves | Ambushed by Subdweller buried in earth 4177 | -10/Subcaves | Visited 4L-MR0's lab 4210 | -10/Subcaves | Discovered new exit (range 12) 4302 | -10/Subcaves | Build established: Mutant 4319 | -10/Subcaves | Ambushed by Subdweller buried in earth 4384 | -10/Subcaves | Ambushed by Subdweller buried in earth 4551 | -10/Subcaves | Found Prototype Special Melee Weapon 4556 | -10/Subcaves | Found Powered Cannon 4778 | -10/Subcaves | Entered Recycling 4876 | -7/Recycling | Discovered new exit (range 5) 4926 | -7/Recycling | Scanned before Scraplab entrance 5357 | -7/Recycling | Identified 1B-0RG's Assimilator 5430 | -7/Recycling | Build established: Commander-Mutant 5845 | -7/Recycling | Lost 5 allies 6180 | -7/Recycling | Entered Scraplab 6198 | -7/Recycling | Discovered new exit (range 3) 6275 | -7/Recycling | Entered Scraptown 6275 | -7/Scraptown | Accompanied by 14 allies 6583 | -7/Scraptown | Heard Great Nut preacher, LISTEN AND RECITE! 6587 | -7/Scraptown | Visited Awakened 6621 | -7/Scraptown | Visited IN-MT5's Study 6645 | -7/Scraptown | Visited Cyclists 6686 | -7/Scraptown | Visited Symbiants 6940 | -7/Scraptown | Visited CR-KLE's Repair Center 6958 | -7/Scraptown | Visited SPCMW 6989 | -7/Scraptown | Visited TADAMA 7035 | -7/Scraptown | Scanned Subdweller tech in exchange for log data 7038 | -7/Scraptown | Learned Research emergency access door positions 7039 | -7/Scraptown | Learned Research stockpile data 7096 | -7/Scraptown | Discovered new exit (range 5) 7165 | -7/Scraptown | Visited UFD Registry 7165 | -7/Scraptown | Registered with UFD as "Datastep" 7204 | -7/Scraptown | Visited Cartography Club 7235 | -7/Scraptown | Visited Scrapoid Research Area 7272 | -7/Scraptown | Visited Botcube Research 7292 | -7/Scraptown | Visited Derelict Rescue Squad 7314 | -7/Scraptown | Visited Junk Repository 7346 | -7/Scraptown | Visited Scrapoid Pod Storage 7384 | -7/Scraptown | Visited Junk Repository 7423 | -7/Scraptown | Visited Chapter 10 7501 | -7/Scraptown | Delivered Scrap Shield to a Scientist 7610 | -7/Scraptown | Visited LU-1G1's Boring Crew 7668 | -7/Scraptown | Visited A0-MCA Data Center 7886 | -7/Scraptown | Discovered new exit (range 5) 8044 | -7/Scraptown | Entered Cyclist Reading Room 8514 | -7/Scraptown | Released all parts (7) 8542 | -7/Scraptown | Found Surveybot 17 Chip 8567 | -7/Scraptown | Learned location of Recycling (-7) 8567 | -7/Scraptown | Learned location of Upper Caves (-4) 8567 | -7/Scraptown | Learned location of Zion (-6) 8567 | -7/Scraptown | Learned location of Extension (-4) 8567 | -7/Scraptown | Learned 12 Materials zone layouts 8567 | -7/Scraptown | Learned 16 Factory zone layouts 8567 | -7/Scraptown | Learned 8 Research zone layouts 8567 | -7/Scraptown | Learned 12 Research zone layouts 8567 | -7/Scraptown | Learned 20 Lower Caves zone layouts 8567 | -7/Scraptown | Learned 12 Proximity Caves zone layouts 8567 | -7/Scraptown | Learned 4 Hub_04(d) zone layouts 8567 | -7/Scraptown | Learned Materials emergency access door positions 8567 | -7/Scraptown | Learned location of 1 exit from Research 8567 | -7/Scraptown | Learned location of 2 exits from Lower Caves 8567 | -7/Scraptown | Learned location of 3 exits from Proximity Caves 8690 | -7/Scraptown | Found Deep Structural Scanner 8787 | -7/Scraptown | Given a B rating by A0-MCA 8791 | -7/Scraptown | Found A0-MCA's Component Scanner 9454 | -7/Scraptown | Found Botcube 9671 | -7/Scraptown | Found Scrap Suit 9686 | -7/Scraptown | Found Scrap Suit 10739 | -7/Scraptown | CR-KLE repaired 7 parts 11035 | -7/Scraptown | Botcube activated 11053 | -7/Scraptown | Botcube completed mutation into legged form, armed with 1 cannon. 11645 | -7/Scraptown | Found DRS Beacon 11756 | -7/Scraptown | Met Optimus 11756 | -7/Scraptown | Accepted into 0bPrime 11873 | -7/Scraptown | Entered Factory 11873 | -5/Factory | Accompanied by 11 allies 11873 | -5/Factory | Evolved 10 slots: Utility x6, Weapon x4 11874 | -5/Factory | Identified exit to Factory 11965 | -5/Factory | Assimilating Engineer 6a into Collective. 11971 | -5/Factory | Assimilating Processor 6a into Collective. 12200 | -5/Factory | Assimilating Informer 6a into Collective. 12209 | -5/Factory | Assimilating Serf 6a into Collective. 12219 | -5/Factory | Lost 4 allies 12333 | -5/Factory | Assimilating Soldier 6a into Collective. 12341 | -5/Factory | Assimilating Soldier 6b into Collective. 12345 | -5/Factory | Assimilating Soldier 6c into Collective. 12369 | -5/Factory | Lost 8 allies 12467 | -5/Factory | P-70 Sage assimilated allied Excavator 4a 12476 | -5/Factory | Assimilating Sage 6a into Collective. 12482 | -5/Factory | Assimilating Sage 6b into Collective. 12541 | -5/Factory | Loaded intel: 8 recycling unit locations 12697 | -5/Factory | Build established: Mutant 12887 | -5/Factory | Assimilating Sage 6c into Collective. 12918 | -5/Factory | Cargo convoy interrupted 12922 | -5/Factory | Assimilating Sage 6d into Collective. 12925 | -5/Factory | Assimilating Slayer 6a into Collective. 12946 | -5/Factory | Found PL-3XN's Ring of Power 12948 | -5/Factory | Found Enh. Gamma Bomb Array 12952 | -5/Factory | Core integrity fell below 50% 12970 | -5/Factory | Lost 8 parts (1p2n3u2w) 12983 | -5/Factory | Lost 6 allies 13073 | -5/Factory | Search patrols dispatched 13080 | -5/Factory | System corruption reached 10% 13147 | -5/Factory | Scrapoids reinforcements arrived? 13172 | -5/Factory | Core integrity fell below 20% 13193 | -5/Factory | Spotted B-75 Beast 13220 | -5/Factory | Discovered new exit (range 10) 13220 | -5/Factory | Destroyed by H-71 Marshal with Heavy Mass Driver Last Messages --------------- Investigation squad. 13137_ /#LJ H5LK,HXOUKHJH:QE8VXX:K,GEWO& 27 13147_ >> RECYCLER: Scrapoids arrived? 13156_ System corrupted: Matter fused (-5). 13161_ Deep Structural Scanner destroyed. 13176_ System corrupted: Nuclear Pulse Array rejected. 13176_ Acquired Nuclear Pulse Array. 13176_ Nuclear Pulse Array destroyed. 13182_ ALERT: Potential suspicious activity detected, Programmers report to Factory Zone 4F. 13191_ System corrupted: Energy discharge (-13). 13201_ S-27 Virus destroyed. 13205_ Component scanned: Cold Fusion Reactor. 13212_ System corrupted: Matter fused (-10). 13213_ Component scanned: Faulty Prc. Energy Filter. 13217_ O-24 Administrator sends out distress signal. 13217_ O-24 Administrator: "IFF HANDSHAKE FAILED. SECURING TERMINAL." 13220_ S-27 Virus destroyed. 13220_ EXIT=FOUND 13220_ Field Propulsion Drive destroyed. Map ----- +----------------------------------------------------+ | ?????# #????????# # """" # " " " " " | | ?????# """""" #????????# # """" # " " " " " | | ?????# """""" #????????# # # " " " " " | | ?????# """""" #????????# # # " " " " " | | ?????# """""" #????????# ####+#### " " " " " | | ?????# *#????????# #??# #??# | | ?????# #????????# #### #####+#####/### | | ?????# #????????# | | ?????########/##?????##?# | | ????????????# #??????? ## A | | ????????????# ########";# | | ????????????# ## ; | | ????????????# ## " k #################+## | | ????????????# ## "" # ????????????? | | ????????????# / "" [ # ????????????? | | ????????????#### + ????????????? | | ???????????????# "" % # ????????????? | | ???????????????# """ #??????????????????? | | ???????????????# """ R#??????????????????? | | ???????????????#! ; #??????????????????? | | ???????????????#########; #??????????????????? | | ########????????????????# #??????????????????? | | # #????????????????# #??????????????????? | | # #????????????????# #??????????????????? | | # #####?# ########H #??????????????????? | | " # + < @ #??????????????????? | | " # #####?# #??????????????????? | | " # #??##?#### % #??????????????????? | | # #??# ? ] o#??????????????????? | | # #??# k +??????????????????? | | ### #??# #??????????????????? | | ########### " " """""" #??????????????????? | | + # " " """""" #??????????????????? | | # # " " """""" #??????????????????? | | # # ?" " """""" #??????????????????? | | # """ """ # ?" " """""" C#??##############??? | | # """ """ + " " """""" k#??# #??? | | # """ """ # " " """""" #??# ! +??? | | # # " " u """""" #??? #??? | | # # " " """""" #????? ????? | | ########### #??????? ??????? | | ########### ? ##########+######### | | o ???? | | #####????????????# | | #????????????????# o | | #????????????????# | | ????############## ! | | ##### # ####+#####+##### ^ | | / # #! ]# | | ##### + "" # ] # | +----------------------------------------------------+ Best States ------------- Heat Dissipation 40 Energy Generation 16 Energy Capacity 290 Matter Stores 600 Matter Capacity 600 Sight Range 20 Terrain Scan Density 10 Jamming Range 14 Armor Coverage 800 Resistance: KI 30 Resistance: TH 10 Propulsion Shielding 66 Evasion (%) 62 Recoil Reduction 2 Item Schematics ----------------- None Robot Schematics ------------------ None Fabricated ------------ Nothing Repaired ---------- Nothing Studied --------- None Alien Tech Used ----------------- None Achievements -------------- Analysis Probe Bob, First Of His Name Civilization 2243 Do Not Disturb Frankenstein Jackpot Link The Feds Mistaken Identity Network Effect Survival Of The Most Covered Wiki Contributor You May Approach The Wall Challenges ------------ None Game ------ Seed HardenedMetafieldBeacon Manual? 0 Play Time 02:29:40 Cumulative 336.3 hours Start 2026.03.09 @ 13:18:03 End 2026.03.12 @ 22:43:40 Sessions 5 Manual Loads 0 Difficulty Rogue Special Mode None Game No. 100 Rogue 100 Adventurer 0 Explorer 0 Win Type - Total 8 Types 4/0/2/1/0/0/1/0/0/0 Lore% 85 Gallery% 77 Achievement% 52 Wizard Run 0 Options --------- Layout 0 ASCII 0 Keyboard 1 Movement Arrows Keybinds 1 Fullscreen 2 Font 36/Terminus++ Map View 76x50 Zoom Use 0% Tactical HUD 1 Map Filters NONE Filters NONE Steam 1 RUN: 69b23b06-6bf4-4bd5-a434-61970551b06f